bitfinex/quotes_BTCUSD_20240101
["timestamp","ask_amount","ask_price","bid_price","bid_amount"]
[1704086513697,0.03276077,42384.0,42383.0,3.51438337]
[1704086513892,0.03276077,42384.0,42383.0,3.74860048]
[1704086514098,0.0070927,42384.0,42383.0,3.74860048]
[1704086514301,0.002,42384.0,42383.0,3.74860048]
[1704086514725,0.05662213,42385.0,42383.0,3.74860048]
[1704086514934,0.05662213,42385.0,42384.0,0.23321711]
[1704086515941,0.05762213,42385.0,42384.0,0.23321711]
[1704086516145,0.00590814,42385.0,42384.0,0.23321711]
[1704086516349,0.0908201,42385.0,42384.0,0.23321711]
[1704086516957,0.0908201,42385.0,42383.0,3.51438337]
[1704086517133,0.05662895,42384.0,42383.0,3.51438337]
[1704086517369,0.5616851,42385.0,42383.0,3.51438337]
[1704086517570,0.00492556,42384.0,42383.0,3.51438337]
[1704086517777,0.47680156,42384.0,42383.0,3.51438337]
[1704086519261,0.56171352,42384.0,42383.0,3.51438337]
[1704086520077,0.56271352,42384.0,42383.0,3.51438337]
[1704086520724,0.56171352,42384.0,42383.0,3.51438337]
[1704086520935,0.56271352,42384.0,42383.0,3.51438337]
[1704086523595,0.59104819,42384.0,42383.0,3.51438337]
[1704086527269,0.47780156,42384.0,42383.0,3.51438337]
[1704086527474,0.59105953,42384.0,42383.0,3.51438337]
[1704086532971,0.61935985,42384.0,42383.0,3.51438337]
[1704086534228,0.59108953,42384.0,42383.0,3.51438337]
[1704086534434,0.47780156,42384.0,42383.0,3.51438337]
[1704086534657,0.59109021,42384.0,42383.0,3.51438337]
[1704086534864,0.47780156,42384.0,42383.0,3.51438337]
[1704086535052,0.59109011,42384.0,42383.0,3.51438337]
[1704086536008,0.47780156,42384.0,42383.0,3.51438337]
[1704086536221,0.59109129,42384.0,42383.0,3.51438337]
[1704086536631,0.59109261,42384.0,42383.0,3.51438337]
[1704086537425,0.59109141,42384.0,42383.0,3.51438337]
[1704086539112,0.61935985,42384.0,42383.0,3.51438337]
[1704086540354,0.00592556,42384.0,42383.0,3.51438337]
[1704086540585,0.47780156,42384.0,42383.0,3.51438337]
[1704086541005,0.59110005,42384.0,42383.0,3.51438337]
[1704086543802,0.11922405,42384.0,42383.0,3.51438337]
[1704086544014,0.59110005,42384.0,42383.0,3.51438337]
[1704086545134,0.11922405,42384.0,42383.0,3.51438337]
[1704086545341,0.59110005,42384.0,42383.0,3.51438337]
[1704086550517,0.47780156,42384.0,42383.0,3.51438337]
[1704086550721,0.09089982,42384.0,42383.0,3.51438337]
[1704086550978,0.09089982,42384.0,42383.0,3.74760048]
[1704086552024,0.00592556,42384.0,42383.0,3.74760048]
[1704086552671,0.062571,42384.0,42383.0,3.74760048]
[1704086552881,0.00592556,42384.0,42383.0,3.74760048]
[1704086554177,0.062571,42384.0,42383.0,3.74760048]
[1704086554386,0.00592556,42384.0,42383.0,3.74760048]
[1704086558033,0.062571,42384.0,42383.0,3.74760048]
[1704086559386,0.00592556,42384.0,42383.0,3.74760048]
[1704086559599,0.06256095,42384.0,42383.0,3.74760048]
[1704086561096,0.00592556,42384.0,42383.0,3.74760048]
[1704086561302,0.06256237,42384.0,42383.0,3.74760048]
[1704086561949,0.00592556,42384.0,42383.0,3.74760048]
[1704086562161,0.09089982,42384.0,42383.0,3.74760048]
[1704086577767,0.56277582,42384.0,42383.0,3.74760048]
[1704086578188,0.00592556,42384.0,42383.0,3.51438337]
[1704086578399,0.59110005,42384.0,42383.0,3.51438337]
[1704086578618,0.47780156,42384.0,42383.0,3.51438337]
[1704086579458,0.59110005,42384.0,42383.0,3.51438337]
[1704086583279,0.59109763,42384.0,42383.0,3.51438337]
[1704086584663,0.56277039,42384.0,42383.0,3.51438337]
[1704086588560,0.59109763,42384.0,42383.0,3.51438337]
[1704086589024,0.47780156,42384.0,42383.0,3.51438337]
[1704086589533,0.59109763,42384.0,42383.0,3.51438337]
[1704086589765,0.47780156,42384.0,42383.0,3.51438337]
[1704086589994,0.59109763,42384.0,42383.0,3.51438337]
[1704086590255,0.11922163,42384.0,42383.0,3.51438337]
[1704086590519,0.59109763,42384.0,42383.0,3.51438337]
[1704086592574,0.47780156,42384.0,42383.0,3.51438337]
[1704086592782,0.67119985,42384.0,42383.0,3.51438337]
[1704086603860,0.61935985,42384.0,42383.0,3.51438337]
[1704086604072,0.66465985,42384.0,42383.0,3.51438337]
[1704086604508,0.61935985,42384.0,42383.0,3.51438337]
[1704086605138,0.66711985,42384.0,42383.0,3.51438337]
[1704086607549,0.52556156,42384.0,42383.0,3.51438337]
[1704086609039,0.74793395,42384.0,42383.0,3.51438337]
[1704086609253,0.88087395,42384.0,42383.0,3.49150837]
[1704086609677,0.7875871,42384.0,42383.0,3.49150837]
[1704086610105,0.7865871,42384.0,42383.0,3.49150837]
[1704086610514,0.7945871,42384.0,42383.0,3.49250837]
[1704086610926,0.7995871,42384.0,42383.0,3.49250837]
[1704086612116,0.7915871,42384.0,42383.0,3.49150837]
[1704086612531,0.7995871,42384.0,42383.0,3.49250837]
[1704086614748,0.3277111,42384.0,42383.0,3.49250837]
[1704086614958,0.7995871,42384.0,42383.0,3.49250837]
[1704086618245,0.3277111,42384.0,42383.0,3.49250837]
[1704086618452,0.7995871,42384.0,42383.0,3.49250837]
[1704086622868,0.67050156,42384.0,42383.0,3.49250837]
[1704086623092,0.65052156,42384.0,42383.0,3.49250837]
[1704086639785,0.6314103,42384.0,42383.0,3.47710837]
[1704086640010,0.1595343,42384.0,42383.0,3.47710837]
[1704086640265,0.13121053,42384.0,42383.0,3.47710837]
[1704086641121,0.1595343,42384.0,42383.0,3.47710837]
[1704086641411,0.6314103,42384.0,42383.0,3.47710837]
[1704086641598,0.48980156,42384.0,42383.0,3.47710837]
[1704086641817,0.63141522,42384.0,42383.0,3.47710837]
[1704086642032,0.63141345,42384.0,42383.0,3.47710837]
[1704086642910,0.48980156,42384.0,42383.0,3.47710837]
[1704086643342,0.63141924,42384.0,42383.0,3.47710837]
[1704086644845,0.48980156,42384.0,42383.0,3.47710837]
[1704086645310,0.63141924,42384.0,42383.0,3.47710837]
[1704086649051,0.62641924,42384.0,42383.0,3.47710837]
[1704086649265,0.63061848,42384.0,42383.0,3.47710837]
[1704086650308,0.4890008,42384.0,42383.0,3.47710837]
[1704086650454,0.63062963,42384.0,42383.0,3.47710837]
[1704086650681,0.4890008,42384.0,42383.0,3.47710837]
[1704086650879,0.63062973,42384.0,42383.0,3.47710837]
[1704086651271,0.4890008,42384.0,42383.0,3.47710837]
[1704086651675,0.15875621,42384.0,42383.0,3.47710837]
[1704086651908,0.63063221,42384.0,42383.0,3.47710837]
[1704086652547,0.4890008,42384.0,42383.0,3.47710837]
[1704086652746,0.63063477,42384.0,42383.0,3.47710837]
[1704086654386,0.4890008,42384.0,42383.0,3.47710837]
[1704086654590,0.60230417,42384.0,42383.0,3.47710837]
[1704086655012,0.4890008,42384.0,42383.0,3.47710837]
[1704086655228,0.13042897,42384.0,42383.0,3.47710837]
[1704086655437,0.60230497,42384.0,42383.0,3.47710837]
[1704086656293,0.4890008,42384.0,42383.0,3.47710837]
[1704086656501,0.6022976,42384.0,42383.0,3.47710837]
[1704086658213,0.6597776,42384.0,42383.0,3.47710837]
[1704086658428,0.68811477,42384.0,42383.0,3.47710837]
[1704086658836,0.63063477,42384.0,42383.0,3.47710837]
[1704086661056,0.68325477,42384.0,42383.0,3.47710837]
[1704086663050,0.63063477,42384.0,42383.0,3.47710837]
[1704086663657,0.15875877,42384.0,42383.0,3.47710837]
[1704086663862,0.68379477,42384.0,42383.0,3.47710837]
[1704086664698,0.63063477,42384.0,42383.0,3.47710837]
[1704086665309,0.4890008,42384.0,42383.0,3.47710837]
[1704086665525,0.5421008,42384.0,42383.0,3.47710837]
[1704086665764,0.68372428,42384.0,42383.0,3.47710837]
[1704086665973,0.63062428,42384.0,42383.0,3.47710837]
[1704086667466,0.68432428,42384.0,42383.0,3.47710837]
[1704086670310,0.5427008,42384.0,42383.0,3.47710837]
[1704086673534,0.4890008,42384.0,42383.0,3.47710837]
[1704086673765,0.5420408,42384.0,42383.0,3.47710837]
[1704086674230,0.4890008,42384.0,42383.0,3.47710837]
[1704086674455,0.5419208,42384.0,42383.0,3.47710837]
[1704086674861,0.4890008,42384.0,42383.0,3.47710837]
[1704086675079,0.5422208,42384.0,42383.0,3.47710837]
[1704086691072,0.77499005,42384.0,42383.0,3.47710837]
[1704086691320,0.83559653,42384.0,42383.0,3.47710837]
[1704086691529,0.6655608,42384.0,42383.0,3.47710837]
[1704086691957,1.03559653,42384.0,42383.0,3.47710837]
[1704086693519,0.8655608,42384.0,42383.0,3.47710837]
[1704086698130,0.3936848,42384.0,42383.0,3.47710837]
[1704086698593,0.8655608,42384.0,42383.0,3.47710837]
[1704086702554,1.03559653,42384.0,42383.0,3.47710837]
[1704086702958,0.8655608,42384.0,42383.0,3.47710837]
[1704086703193,0.3936848,42384.0,42383.0,3.47710837]
[1704086703403,0.8655608,42384.0,42383.0,3.47710837]
[1704086707583,1.03559653,42384.0,42383.0,3.47710837]
[1704086708194,0.8655608,42384.0,42383.0,3.47710837]
[1704086708821,1.03559653,42384.0,42383.0,3.47710837]
[1704086708996,0.8655608,42384.0,42383.0,3.47710837]
[1704086713287,1.03559653,42384.0,42383.0,3.47710837]
[1704086713492,0.8655608,42384.0,42383.0,3.47710837]
[1704086714548,1.03559653,42384.0,42383.0,3.47710837]
[1704086714759,0.8655608,42384.0,42383.0,3.47710837]
[1704086716266,1.03559653,42384.0,42383.0,3.47710837]
[1704086716455,0.8655608,42384.0,42383.0,3.47710837]
[1704086716937,1.03559653,42384.0,42383.0,3.47710837]
[1704086718841,0.62220616,42384.0,42383.0,3.47710837]
[1704086719038,0.0171248,42384.0,42383.0,3.47710837]
[1704086719670,0.008,42384.0,42383.0,3.47710837]
[1704086719873,0.471804,42391.0,42383.0,3.47610837]
[1704086720106,0.005,42384.0,42383.0,3.47610837]
[1704086720296,0.007,42384.0,42383.0,3.47610837]
[1704086720707,0.471804,42391.0,42383.0,3.48510837]
[1704086720842,0.001,42384.0,42383.0,3.48410837]
[1704086721271,0.001,42384.0,42383.0,3.72332548]
[1704086723300,0.001,42384.0,42383.0,3.71732548]
[1704086723714,0.001,42384.0,42383.0,3.72632548]
[1704086734775,0.001,42384.0,42383.0,3.82632548]
[1704086756953,0.001,42384.0,42383.0,3.72632548]
[1704086757589,0.001,42384.0,42383.0,3.49310837]
[1704086757822,0.472876,42384.0,42383.0,3.49310837]
[1704086758049,0.572876,42384.0,42383.0,3.49310837]
[1704086758266,0.64663187,42384.0,42383.0,3.49310837]
[1704086758968,0.64663187,42384.0,42383.0,3.47610837]
[1704086758969,0.64563187,42384.0,42383.0,3.47610837]
[1704086759410,0.65863187,42384.0,42383.0,3.47610837]
[1704086759632,0.65263187,42384.0,42383.0,3.47610837]
[1704086759846,0.64563187,42384.0,42383.0,3.47610837]
[1704086760058,0.65163187,42384.0,42383.0,3.47610837]
[1704086761101,0.65963187,42384.0,42383.0,3.47710837]
[1704086762647,0.71603648,42384.0,42383.0,3.47710837]
[1704086763296,0.24416048,42384.0,42383.0,3.47710837]
[1704086763552,0.48979187,42384.0,42383.0,3.47710837]
[1704086764601,0.54619648,42384.0,42383.0,3.47710837]
[1704086765422,0.48979187,42384.0,42383.0,3.47710837]
[1704086767341,0.58979187,42384.0,42383.0,3.47710837]
[1704086767554,0.63539187,42384.0,42383.0,3.47710837]
[1704086767787,0.69179648,42384.0,42383.0,3.47710837]
[1704086768008,0.63539187,42384.0,42383.0,3.47710837]
[1704086769528,0.65579187,42384.0,42383.0,3.47710837]
[1704086770607,0.71219648,42384.0,42383.0,3.47710837]
[1704086771669,0.65579187,42384.0,42383.0,3.47710837]
[1704086771862,0.71219648,42384.0,42383.0,3.47710837]
[1704086773424,0.65579187,42384.0,42383.0,3.47710837]
[1704086773637,0.71219648,42384.0,42383.0,3.47710837]
[1704086773945,0.65579187,42384.0,42383.0,3.47710837]
[1704086774366,0.71228487,42384.0,42383.0,3.47710837]
[1704086774582,2.12183863,42384.0,42383.0,3.47710837]
[1704086774802,2.28640093,42384.0,42383.0,3.47710837]
[1704086775037,2.25837885,42384.0,42383.0,3.47710837]
[1704086775252,2.66209693,42384.0,42383.0,3.47710837]
[1704086775470,2.76445693,42384.0,42383.0,3.47710837]
[1704086775680,2.5210854,42384.0,42383.0,3.47710837]
[1704086776066,2.63405614,42384.0,42383.0,3.47710837]
[1704086776285,2.72555614,42384.0,42383.0,3.47710837]
[1704086777026,2.71555614,42384.0,42383.0,3.47710837]
[1704086777369,2.72555614,42384.0,42383.0,3.47710837]
[1704086777574,2.63405614,42384.0,42383.0,3.47710837]
[1704086778023,2.72753614,42384.0,42383.0,3.47710837]
[1704086779567,1.31190814,42384.0,42383.0,3.47710837]
[1704086779773,2.25566014,42384.0,42383.0,3.47710837]
[1704086779968,2.72753614,42384.0,42383.0,3.47710837]
[1704086780417,2.71753614,42384.0,42383.0,3.47710837]
[1704086780644,2.72753614,42384.0,42383.0,3.47710837]
[1704086781849,2.63405614,42384.0,42383.0,3.47710837]
[1704086783259,2.25890014,42384.0,42383.0,3.47710837]
[1704086783676,2.73077614,42384.0,42383.0,3.47710837]
[1704086789253,2.63405614,42384.0,42383.0,3.47710837]
[1704086790341,2.6136654,42384.0,42383.0,3.47710837]
[1704086790979,2.5210854,42384.0,42383.0,3.47710837]
[1704086791135,2.6142054,42384.0,42383.0,3.47710837]
[1704086791337,2.75521693,42384.0,42383.0,3.47710837]
[1704086791759,2.66209693,42384.0,42383.0,3.47710837]
[1704086791992,2.5210854,42384.0,42383.0,3.47710837]
[1704086792397,2.75461693,42384.0,42383.0,3.47710837]
[1704086792710,2.66209693,42384.0,42383.0,3.47710837]
[1704086794648,2.76055693,42384.0,42383.0,3.47710837]
[1704086795592,2.66209693,42384.0,42383.0,3.47710837]
[1704086797188,2.5210854,42384.0,42383.0,3.47710837]
[1704086799704,1.1054574,42384.0,42383.0,3.47710837]
[1704086799906,1.5773334,42384.0,42383.0,3.47710837]
[1704086800640,2.5210854,42384.0,42383.0,3.47710837]
[1704086801187,1.19597187,42384.0,42383.0,3.47710837]
[1704086801385,1.30603727,42384.0,42383.0,3.47710837]
[1704086801615,1.16471187,42384.0,42383.0,3.47710837]
[1704086801832,1.2777693,42384.0,42383.0,3.47710837]
[1704086802242,1.16471187,42384.0,42383.0,3.47710837]
[1704086802448,1.27780601,42384.0,42383.0,3.47710837]
[1704086802874,1.16471187,42384.0,42383.0,3.47710837]
[1704086803086,1.30603727,42384.0,42383.0,3.47710837]
[1704086803897,1.16471187,42384.0,42383.0,3.47710837]
[1704086804142,1.30603727,42384.0,42383.0,3.47710837]
[1704086804359,1.16471187,42384.0,42383.0,3.47710837]
[1704086806580,1.30611964,42384.0,42383.0,3.47710837]
[1704086806996,1.16471187,42384.0,42383.0,3.47710837]
[1704086808259,1.63658787,42384.0,42383.0,3.47710837]
[1704086809840,0.69283587,42384.0,42383.0,3.47710837]
[1704086810143,1.16471187,42384.0,42383.0,3.47710837]
[1704086810707,1.63658787,42384.0,42383.0,3.47710837]
[1704086813629,1.16471187,42384.0,42383.0,3.47710837]
[1704086814661,1.63658787,42384.0,42383.0,3.47710837]
[1704086819143,2.64421482,42384.0,42383.0,3.47710837]
[1704086819996,2.64483596,42384.0,42383.0,3.47710837]
[1704086820207,2.61080073,42384.0,42383.0,3.47710837]
[1704086820615,1.19517273,42384.0,42383.0,3.47710837]
[1704086820847,1.70108114,42384.0,42383.0,3.47710837]
[1704086821055,1.83693403,42384.0,42383.0,3.47710837]
[1704086821290,1.66710187,42384.0,42383.0,3.47710837]
[1704086821690,2.61085387,42384.0,42383.0,3.47710837]
[1704086821882,2.61085387,42384.0,42383.0,3.28988837]
[1704086822128,3.27716251,42384.0,42383.0,0.25434469]
[1704086822341,3.10572987,42384.0,42383.0,0.25434469]
[1704086822558,3.24980474,42384.0,42383.0,0.25434469]
[1704086822974,2.77792874,42384.0,42383.0,0.25434469]
[1704086823396,2.61085387,42384.0,42383.0,0.25434469]
[1704086824260,1.19522587,42384.0,42383.0,0.25434469]
[1704086824479,2.13897787,42384.0,42383.0,0.25434469]
[1704086824686,2.61085387,42384.0,42383.0,0.25434469]
[1704086826634,0.1,42369.0,42361.0,0.008]
[1704086826855,0.05661162,42366.0,42361.0,0.008]
[1704086827085,0.05661162,42364.0,42361.0,0.008]
[1704086827299,0.09328685,42363.0,42361.0,0.008]
[1704086827522,0.05157586,42363.0,42361.0,0.008]
[1704086827975,0.00441586,42363.0,42361.0,0.008]
[1704086828388,0.0588,42365.0,42361.0,0.008]
[1704086828567,0.00441375,42362.0,42361.0,0.008]
[1704086828805,0.0588,42365.0,42360.0,0.00283]
[1704086829013,0.00447227,42362.0,42360.0,0.00283]
[1704086829215,0.002,42363.0,42360.0,0.00283]
[1704086829421,0.005,42363.0,42360.0,0.00283]
[1704086829630,0.003,42363.0,42360.0,0.00283]
[1704086829832,0.00446909,42362.0,42360.0,0.00283]
[1704086830038,0.00546909,42362.0,42356.0,0.00283]
[1704086830246,0.001,42362.0,42358.0,0.00283]
[1704086830872,0.002,42363.0,42358.0,0.00283]
[1704086831294,0.00441474,42362.0,42356.0,0.00283]
[1704086831507,0.00441474,42362.0,42356.0,0.23604711]
[1704086831719,0.0465,42363.0,42356.0,0.00283]
[1704086831924,0.001,42362.0,42356.0,0.00283]
[1704086832554,0.002,42362.0,42356.0,0.00283]
[1704086832763,0.001,42362.0,42356.0,0.00283]
[1704086833364,0.472143,42360.0,42356.0,0.00283]
[1704086833982,0.00449133,42359.0,42356.0,0.00283]
[1704086834407,0.00449133,42359.0,42353.0,0.00283]
[1704086834617,0.00449133,42359.0,42353.0,0.01283]
[1704086834823,0.473128,42362.0,42353.0,0.01283]
[1704086835061,0.0044861,42358.0,42356.0,0.002]
[1704086835269,0.472128,42362.0,42356.0,0.002]
[1704086835470,0.0044861,42357.0,42356.0,0.001]
[1704086835678,0.472128,42362.0,42356.0,0.001]
[1704086835893,0.00448927,42357.0,42356.0,0.001]
[1704086836105,0.472099,42364.0,42355.0,0.00283]
[1704086836316,0.472099,42364.0,42356.0,0.00683]
[1704086836536,0.18391307,42363.0,42356.0,0.00683]
[1704086836751,0.18391307,42363.0,42356.0,0.00483]
[1704086837219,0.520781,42362.0,42356.0,0.003]
[1704086837429,0.472133,42361.0,42356.0,0.003]
[1704086837638,0.540893,42361.0,42356.0,0.003]
[1704086837861,0.0597,42360.0,42356.0,0.001]
[1704086838295,0.531843,42360.0,42356.0,0.001]
[1704086838503,0.00447745,42359.0,42353.0,0.00283]
[1704086838899,0.05829745,42359.0,42356.0,0.001]
[1704086839354,0.05829745,42359.0,42353.0,0.00283]
[1704086839767,0.05929745,42359.0,42353.0,0.00283]
[1704086840386,0.0486,42358.0,42353.0,0.00283]
[1704086840803,0.00447045,42358.0,42353.0,0.00283]
[1704086841428,0.00447045,42358.0,42353.0,0.00383]
[1704086841626,0.472143,42360.0,42353.0,0.00383]
[1704086841869,0.00447045,42357.0,42353.0,0.00383]
[1704086842106,0.472143,42360.0,42353.0,0.00383]
[1704086842315,0.00447045,42356.0,42353.0,0.00383]
[1704086842494,0.35196,42363.0,42353.0,0.00383]
[1704086842495,0.57212,42363.0,42353.0,0.00383]
[1704086842914,0.00447395,42362.0,42354.0,0.1869]
[1704086843117,0.05103395,42362.0,42354.0,0.1869]
[1704086843600,0.14554395,42362.0,42354.0,0.1869]
[1704086843789,0.05103395,42362.0,42354.0,0.1869]
[1704086843987,0.00447395,42362.0,42354.0,0.1869]
[1704086844425,0.05253395,42362.0,42354.0,0.1869]
[1704086844630,0.00947395,42362.0,42354.0,0.1869]
[1704086844838,0.05549395,42362.0,42354.0,0.1869]
[1704086845464,0.06149395,42362.0,42354.0,0.1869]
[1704086845879,0.01547395,42362.0,42354.0,0.1869]
[1704086846082,0.06509395,42362.0,42354.0,0.1869]
[1704086847528,0.14385891,42361.0,42354.0,0.1869]
[1704086847737,0.19995891,42361.0,42354.0,0.1869]
[1704086847945,0.05678685,42360.0,42354.0,0.1869]
[1704086849215,0.05878685,42360.0,42354.0,0.1869]
[1704086849600,0.04722,42359.0,42354.0,0.1869]
[1704086850048,0.00446685,42358.0,42352.0,0.472232]
[1704086850255,0.00446685,42358.0,42352.0,0.70544911]
[1704086851520,0.00446685,42358.0,42352.0,0.70644911]
[1704086851728,0.05488,42359.0,42352.0,0.70644911]
[1704086851944,0.00446194,42357.0,42352.0,0.70644911]
[1704086852160,0.05388,42359.0,42352.0,0.70644911]
[1704086852371,0.00439536,42358.0,42352.0,0.70644911]
[1704086852590,0.05388,42359.0,42352.0,0.70644911]
[1704086852798,0.00439536,42358.0,42352.0,0.70644911]
[1704086853619,0.00439536,42358.0,42352.0,0.70544911]
[1704086854043,0.00439536,42358.0,42352.0,0.70744911]
[1704086854254,0.00439536,42358.0,42352.0,0.70544911]
[1704086854460,0.00439536,42358.0,42352.0,0.70644911]
[1704086857516,0.2129,42357.0,42352.0,0.70644911]
[1704086857934,0.00446194,42356.0,42352.0,0.70644911]
[1704086858151,0.07058194,42356.0,42352.0,0.001]
[1704086858820,0.07058194,42356.0,42352.0,0.002]
[1704086859871,0.07058194,42356.0,42352.0,0.001]
[1704086860079,0.07058194,42356.0,42349.0,0.02871]
[1704086860080,0.17798074,42355.0,42349.0,0.02871]
[1704086860285,0.65018074,42355.0,42349.0,0.02871]
[1704086860505,0.29664036,42354.0,42352.0,0.004]
[1704086860906,0.29664036,42354.0,42349.0,0.02871]
[1704086860907,0.0795,42353.0,42349.0,0.02871]
[1704086861343,0.00436,42352.0,42349.0,0.02871]
[1704086862592,0.13204742,42351.0,42349.0,0.02871]
[1704086863020,0.07302,42350.0,42349.0,0.02871]
[1704086863241,0.61063616,42350.0,42349.0,0.02871]
[1704086863466,1.08289116,42350.0,42349.0,0.02871]
[1704086863903,1.08289116,42350.0,42349.0,0.03071]
[1704086864115,1.08289116,42350.0,42349.0,0.02971]
[1704086864328,1.08289116,42350.0,42349.0,0.03371]
[1704086864548,1.17373116,42350.0,42349.0,0.03271]
[1704086864813,1.17373116,42350.0,42349.0,0.02871]
[1704086865048,1.17373116,42350.0,42349.0,0.03171]
[1704086865908,1.18173116,42350.0,42349.0,0.03271]
[1704086866358,1.17373116,42350.0,42349.0,0.02871]
[1704086866612,1.19273116,42350.0,42349.0,0.03071]
[1704086866859,1.22501116,42350.0,42349.0,0.03071]
[1704086872552,1.72026616,42350.0,42349.0,0.03071]
[1704086872927,1.76052616,42350.0,42349.0,0.03071]
[1704086873299,1.89684616,42350.0,42349.0,0.03071]
[1704086873529,1.76052616,42350.0,42349.0,0.03071]
[1704086873787,1.28827116,42350.0,42349.0,0.03071]
[1704086874677,1.76052616,42350.0,42349.0,0.03071]
[1704086877142,1.78902421,42350.0,42349.0,0.03071]
[1704086877412,1.31676921,42350.0,42349.0,0.03071]
[1704086877688,1.78902421,42350.0,42349.0,0.03071]
[1704086879375,2.08902421,42350.0,42349.0,0.03071]
[1704086881186,2.30423504,42350.0,42349.0,0.03071]
[1704086881403,2.46561875,42350.0,42349.0,0.03071]
[1704086881655,2.38756792,42350.0,42349.0,0.03071]
[1704086888750,2.30683292,42350.0,42349.0,0.03071]
[1704086888915,2.25040792,42350.0,42349.0,0.03071]
[1704086890099,2.39798792,42350.0,42349.0,0.03071]
[1704086890345,2.61000519,42350.0,42349.0,0.03071]
[1704086890950,2.66643019,42350.0,42349.0,0.03071]
[1704086891364,2.45441292,42350.0,42349.0,0.03071]
[1704086891566,2.31683292,42350.0,42349.0,0.03071]
[1704086891776,2.26040792,42350.0,42349.0,0.03071]
[1704086896111,1.76515292,42350.0,42349.0,0.03071]
[1704086898509,1.73425292,42350.0,42349.0,0.03071]
[1704086901983,1.46756921,42350.0,42349.0,0.03071]
[1704086902200,1.43907116,42350.0,42349.0,0.03071]
[1704086903313,1.43907116,42350.0,42349.0,0.0779]
[1704086903522,1.23907116,42350.0,42349.0,0.0779]
[1704086904115,1.33907116,42350.0,42349.0,0.0779]
[1704086904328,1.23907116,42350.0,42349.0,0.0779]
[1704086904758,0.66681616,42350.0,42349.0,0.0779]
[1704086904974,1.23907116,42350.0,42349.0,0.0779]
[1704086905181,1.61175907,42350.0,42349.0,0.0779]
[1704086905412,1.76598407,42350.0,42349.0,0.0779]
[1704086905616,1.79419657,42350.0,42349.0,0.0779]
[1704086905848,1.70955907,42350.0,42349.0,0.0779]
[1704086906028,1.76612217,42350.0,42349.0,0.0779]
[1704086906235,1.70955907,42350.0,42349.0,0.0779]
[1704086906439,1.79440509,42350.0,42349.0,0.0779]
[1704086907300,1.69660509,42350.0,42349.0,0.0779]
[1704086907502,1.78840509,42350.0,42349.0,0.0779]
[1704086907734,1.69660509,42350.0,42349.0,0.0779]
[1704086907954,1.79152509,42350.0,42349.0,0.0779]
[1704086908606,1.69666412,42350.0,42349.0,0.0779]
[1704086909454,1.72497351,42350.0,42349.0,0.0779]
[1704086909679,1.82169351,42350.0,42349.0,0.0779]
[1704086909887,1.72497351,42350.0,42349.0,0.0779]
[1704086910608,1.81677351,42350.0,42349.0,0.0779]
[1704086911344,1.70355907,42350.0,42349.0,0.0779]
[1704086911560,1.81905351,42350.0,42349.0,0.0779]
[1704086912257,1.84690158,42350.0,42349.0,0.0779]
[1704086912472,1.81906212,42350.0,42349.0,0.0779]
[1704086912924,1.70583907,42350.0,42349.0,0.0779]
[1704086913181,1.84690158,42350.0,42349.0,0.0779]
[1704086913429,1.70583907,42350.0,42349.0,0.0779]
[1704086914765,1.84737963,42350.0,42349.0,0.0779]
[1704086915171,1.70583907,42350.0,42349.0,0.0779]
[1704086915388,1.84738152,42350.0,42349.0,0.0779]
[1704086918312,1.81910047,42350.0,42349.0,0.0779]
[1704086921378,1.81778047,42350.0,42349.0,0.0779]
[1704086922217,1.84606152,42350.0,42349.0,0.0779]
[1704086926840,1.8177838,42350.0,42349.0,0.0779]
[1704086927040,1.84606152,42350.0,42349.0,0.0779]
[1704086927675,1.70451907,42350.0,42349.0,0.0779]
[1704086927875,1.81778633,42350.0,42349.0,0.0779]
[1704086928238,1.70451907,42350.0,42349.0,0.0779]
[1704086928438,1.84606152,42350.0,42349.0,0.0779]
[1704086928678,1.70451907,42350.0,42349.0,0.0779]
[1704086929127,1.84606152,42350.0,42349.0,0.0779]
[1704086931107,1.72504041,42350.0,42349.0,0.0779]
[1704086931323,1.81876041,42350.0,42349.0,0.0779]
[1704086932390,1.70547907,42350.0,42349.0,0.0779]
[1704086932562,1.84702152,42350.0,42349.0,0.0779]
[1704086932762,1.70547907,42350.0,42349.0,0.0779]
[1704086932998,1.84702152,42350.0,42349.0,0.0779]
[1704086933366,1.13907116,42350.0,42349.0,0.0779]
[1704086933594,1.55236858,42350.0,42349.0,0.0779]
[1704086934045,1.78133228,42350.0,42349.0,0.0779]
[1704086934292,1.80957731,42350.0,42349.0,0.0779]
[1704086936984,1.66803486,42350.0,42349.0,0.0779]
[1704086937498,2.14028986,42350.0,42349.0,0.0779]
[1704086937847,2.43640986,42350.0,42349.0,0.0779]
[1704086939474,2.22586986,42350.0,42349.0,0.0779]
[1704086939810,2.20286986,42350.0,42349.0,0.0779]
[1704086941911,2.20286986,42350.0,42349.0,0.03071]
[1704086942336,2.20286986,42350.0,42349.0,0.0779]
[1704086942773,1.25835986,42350.0,42349.0,0.0779]
[1704086942993,2.20286986,42350.0,42349.0,0.0779]
[1704086943883,2.20286986,42350.0,42349.0,0.03071]
[1704086944106,2.20286986,42350.0,42349.0,0.0779]
[1704086945943,2.20286986,42350.0,42349.0,0.0274168]
[1704086946193,2.37214487,42350.0,42349.0,0.0274168]
[1704086946905,1.89988987,42350.0,42349.0,0.0274168]
[1704086947638,2.37214487,42350.0,42349.0,0.0274168]
[1704086949429,2.20286986,42350.0,42349.0,0.0274168]
[1704086949898,2.37214487,42350.0,42349.0,0.0274168]
[1704086953635,2.4924412,42350.0,42349.0,0.0274168]
[1704086953887,2.37214487,42350.0,42349.0,0.0274168]
[1704086955800,2.20286986,42350.0,42349.0,0.0274168]
[1704086962528,2.37214487,42350.0,42349.0,0.0274168]
[1704086962958,2.20286986,42350.0,42349.0,0.0274168]
[1704086965217,2.37214487,42350.0,42349.0,0.0274168]
[1704086965859,2.20286986,42350.0,42349.0,0.0274168]
[1704086966719,2.37214487,42350.0,42349.0,0.0274168]
[1704086969524,2.20286986,42350.0,42349.0,0.0274168]
[1704086970198,2.37214487,42350.0,42349.0,0.0274168]
[1704086971920,2.4943427,42350.0,42349.0,0.0274168]
[1704086972342,2.37287471,42350.0,42349.0,0.0274168]
[1704086975437,2.49441494,42350.0,42349.0,0.0274168]
[1704086975638,2.32411881,42350.0,42349.0,0.0274168]
[1704086975839,2.47678408,42350.0,42349.0,0.0274168]
[1704086976165,2.49978408,42350.0,42349.0,0.0274168]
[1704086980645,2.02752908,42350.0,42349.0,0.0274168]
[1704086981722,2.49978408,42350.0,42349.0,0.0274168]
[1704086983054,2.34702408,42350.0,42349.0,0.0274168]
[1704086983707,1.40251408,42350.0,42349.0,0.0274168]
[1704086983919,1.87476908,42350.0,42349.0,0.0274168]
[1704086984378,2.34702408,42350.0,42349.0,0.0274168]